fUSD/lending_fUSD_20251123
["ID","MTS","AMOUNT","RATE_DAILY","PERIOD"]
[394706188,1763909444371,-1500.0,0.00029406,2]
[394706189,1763909444381,-1500.0,0.00029406,2]
[394706190,1763909444391,-1500.0,0.00029406,2]
[394706191,1763909444400,-500.0,0.00029406,2]
[394706192,1763909444410,-1500.0,0.00029406,2]
[394706193,1763909444642,-565.18298562,0.00029406,2]
[394706194,1763909444652,-1098.0534169,0.00029406,2]
[394706195,1763909444661,-500.0,0.00029406,2]
[394706197,1763909444670,-500.0,0.00029406,2]
[394706198,1763909444680,-500.0,0.00029406,2]
[394706199,1763909444689,-500.0,0.00029406,2]
[394706200,1763909444698,-500.0,0.00029406,2]
[394706201,1763909444708,-500.0,0.00029406,2]
[394706202,1763909444717,-500.0,0.00029406,2]
[394706203,1763909444726,-500.0,0.00029406,2]
[394706204,1763909444735,-500.0,0.00029406,2]
[394706205,1763909444744,-500.0,0.00029406,2]
[394706206,1763909444753,-578.20924308,0.00029406,2]
[394706207,1763909444762,-500.0,0.00029406,2]
[394706208,1763909444772,-500.0,0.00029406,2]
[394706209,1763909444780,-500.0,0.00029406,2]
[394706210,1763909444789,-500.0,0.00029406,2]
[394706211,1763909444802,-500.0,0.00029406,2]
[394706212,1763909444813,-500.0,0.00029406,2]
[394706213,1763909444822,-500.0,0.00029406,2]
[394706214,1763909444831,-500.0,0.00029406,2]
[394706215,1763909444840,-500.0,0.00029406,2]
[394706216,1763909444851,-500.0,0.00029406,2]
[394706217,1763909444861,-500.0,0.00029406,2]
[394706218,1763909444871,-500.0,0.00029406,2]
[394706219,1763909444881,-151.0,0.00029522,7]
[394706220,1763909444893,-217.004398,0.00029522,7]
[394706221,1763909444904,-151.0,0.00029522,7]
[394706222,1763909444914,-151.0,0.00029522,7]
[394706223,1763909444925,-153.0,0.0002968,2]
[394706224,1763909444936,-153.0,0.00029683,2]
[394706225,1763909444947,-852.99552912,0.00029688,2]
[394706226,1763909444956,-153.0,0.00029697,2]
[394706227,1763909444966,-166.66,0.00029807,2]
[394706228,1763909444976,-153.23453524,0.00029861,2]
[394706229,1763909444987,-544.08987339,0.00029866,15]
[394706230,1763909444997,-574.12855637,0.00029954,2]
[394706231,1763909445008,-620.0,0.00029954,2]
[394706232,1763909445017,-5984.47,0.0003,7]
[394706233,1763909445027,-1096.0,0.00030043,5]
[394706234,1763909445037,-158.11,0.000301,7]
[394706235,1763909445047,-259.64,0.000302,14]
[394706236,1763909445055,-1601.0,0.00030463,2]
[394706237,1763909445062,-822.0,0.00030463,2]
[394706238,1763909445070,-659.0,0.00030463,2]
[394706239,1763909445077,-1256.0,0.00030463,2]
[394706240,1763909445087,-561.0,0.00030463,2]
[394706241,1763909445098,-2656.17,0.000305,2]
[394706242,1763909445112,-1441.0,0.000307,2]
[394706243,1763909445123,-206.84,0.00030824,2]
[394706244,1763909445134,-765.47879034,0.00030871,2]
[394706245,1763909445144,-153.23453524,0.00031218,2]
[394706246,1763909445155,-166.66,0.00031362,2]
[394706247,1763909445164,-206.83,0.00031519,2]
[394706248,1763909445174,-1096.0,0.00031545,5]
[394706249,1763909445184,-150.0,0.0003159,2]
[394706250,1763909445194,-150.0,0.0003159,120]
[394706251,1763909445204,-159.63,0.000317,7]
[394706252,1763909445214,-2403.0,0.00031777,5]
[394706253,1763909445223,-2656.17,0.000322,2]
[394706254,1763909445233,-178.05,0.00032216,2]
[394706255,1763909445243,-153.23453526,0.00032576,2]
[394706256,1763909445253,-544.08987339,0.00032624,15]
[394706257,1763909445264,-166.66,0.00032916,2]
[394706258,1763909445274,-161.0,0.00033,120]
[394706259,1763909445284,-852.99552912,0.00033092,2]
[394706261,1763909445293,-1096.0,0.00033123,5]
[394706262,1763909445303,-302.995,0.00033463,2]
[394706263,1763909445314,-159.63,0.000335,14]
[394706264,1763909445323,-671.94,0.0003378,2]
[394706265,1763909445333,-151.0,0.00033792,31]
[394706266,1763909445343,-179.251115,0.00033792,31]
[394706267,1763909445354,-151.0,0.00033792,31]
[394706268,1763909445364,-151.0,0.00033792,31]
[394706269,1763909445374,-151.0,0.00033792,31]
[394706270,1763909445383,-151.0,0.00033792,31]
[394706271,1763909445393,-151.0,0.00033792,31]
[394706272,1763909445403,-151.0,0.00033792,31]
[394706273,1763909445412,-151.0,0.00033792,31]
[394706274,1763909445422,-151.0,0.00033792,30]
[394706275,1763909445431,-151.0,0.00033792,31]
[394706276,1763909445442,-151.0,0.00033792,31]
[394706277,1763909445451,-151.0,0.00033792,31]
[394706279,1763909445461,-151.0,0.00033792,30]
[394706281,1763909445470,-151.0,0.00033792,30]
[394706283,1763909445480,-151.0,0.00033792,31]
[394706284,1763909445489,-151.0,0.00033792,10]
[394706285,1763909445499,-151.0,0.00033792,31]
[394706286,1763909445509,-369.55504584,0.0003424,2]
[394706287,1763909445519,-3587.326,0.00034253,38]
[394706288,1763909445529,-261.808,0.00034253,38]
[394706289,1763909445540,-151.0,0.0003434,31]
[394706290,1763909445549,-151.0,0.0003434,31]
[394706291,1763909445559,-259.124551,0.0003434,30]
[394706292,1763909445568,-500.0,0.00034521,2]
[394706293,1763909445578,-1096.0,0.00034779,5]
[394706294,1763909445587,-804.02752266,0.000349,2]
[394706295,1763909445597,-161.0,0.00035,120]
[394706296,1763909445609,-765.47879034,0.00035286,2]
[394706297,1763909445618,-544.08987339,0.00035383,15]
[394706298,1763909445628,-159.63,0.000355,14]
[394706299,1763909445637,-6269.47719753,0.00035616,120]
[394706300,1763909445646,-1038.56,0.00036,2]
[394706301,1763909445655,-3647.24447148,0.00036192,2]
[394706302,1763909445665,-155.660811,0.00036298,31]
[394706303,1763909445674,-159.148597,0.00036298,31]
[394706304,1763909445684,-151.0,0.00036298,31]
[394706306,1763909445693,-151.0,0.00036298,31]
[394706307,1763909445702,-852.99552912,0.00036496,2]
[394706308,1763909445712,-5984.47,0.000365,14]
[394706309,1763909445721,-1095.0,0.00036518,5]
[394706310,1763909445730,-150.0,0.0003663,30]
[394706311,1763909445739,-1038.56,0.0003672,2]
[394706312,1763909445749,-178.05,0.00036818,2]
[394706313,1763909445758,-267.46074303,0.0003686,30]
[394706314,1763909445768,-5984.47,0.00037,14]
[394706315,1763909445777,-878.71,0.00037139,5]
[394706316,1763909445786,-159.63,0.000373,14]
[394706317,1763909445795,-150.0,0.00037397,2]
[394706318,1763909445807,-150.0,0.00037397,2]
[394706319,1763909445818,-500.0,0.00037397,2]
[394706320,1763909445827,-150.0,0.00037397,2]
[394706321,1763909445837,-150.0,0.00037397,2]
[394706322,1763909445847,-500.0,0.00037397,2]
[394706323,1763909445857,-150.0,0.00037397,2]
[394706324,1763909445867,-150.0,0.00037397,2]
[394706325,1763909445876,-150.0,0.00037397,2]
[394706326,1763909445889,-150.0,0.00037397,2]
[394706327,1763909445901,-198.2572427,0.00037397,2]
[394706328,1763909445911,-150.0,0.00037397,2]
[394706329,1763909445921,-150.0,0.00037397,2]
[394706330,1763909445930,-168.89410858,0.00037397,2]
[394706331,1763909445940,-150.0,0.00037397,2]
[394706332,1763909445950,-150.0,0.00037397,2]
[394706333,1763909445960,-150.0,0.00037397,2]
[394706334,1763909445970,-500.0,0.00037397,2]
[394706335,1763909445980,-150.0,0.00037397,2]
[394706336,1763909445990,-156.18303639,0.00037397,2]
[394706337,1763909446000,-500.0,0.00037397,2]
[394706338,1763909446009,-219.78111574,0.00037397,2]
[394706339,1763909446020,-150.0,0.00037397,2]
[394706340,1763909446032,-150.0,0.00037397,2]
[394706341,1763909446042,-500.0,0.00037397,2]
[394706342,1763909446053,-150.0,0.00037397,2]
[394706343,1763909446063,-150.0,0.00037397,2]
[394706344,1763909446072,-150.0,0.00037397,2]
[394706345,1763909446082,-500.0,0.00037397,2]
[394706346,1763909446091,-500.0,0.00037397,2]
[394706347,1763909446101,-500.0,0.00037397,2]
[394706348,1763909446110,-500.0,0.00037397,2]
[394706349,1763909446120,-500.0,0.00037397,2]
[394706350,1763909446129,-152.71068168,0.00037397,2]
[394706351,1763909446139,-150.0,0.00037397,2]
[394706352,1763909446149,-500.0,0.00037397,2]
[394706354,1763909446159,-500.0,0.00037397,2]
[394706355,1763909446168,-150.0,0.00037397,2]
[394706356,1763909446177,-500.0,0.00037397,2]
[394706357,1763909446187,-500.0,0.00037397,2]
[394706358,1763909446196,-150.0,0.00037397,2]
[394706359,1763909446205,-500.0,0.00037397,2]
[394706360,1763909446215,-150.0,0.00037397,2]
[394706361,1763909446224,-500.0,0.00037397,2]
[394706362,1763909446234,-1038.56,0.0003744,2]
[394706363,1763909446244,-257.91778498,0.00037472,30]
[394706364,1763909446254,-500.0,0.00037533,7]
[394706365,1763909446264,-500.0,0.00037533,2]
[394706366,1763909446273,-150.0,0.00037534,2]
[394706367,1763909446283,-196.44177563,0.00037534,2]
[394706368,1763909446292,-531.71112977,0.00037534,2]
[394706369,1763909446302,-150.0,0.00037534,2]
[394706370,1763909446311,-150.0,0.00037534,2]
[394706371,1763909446320,-500.0,0.00037534,2]
[394706372,1763909446330,-150.0,0.00037534,2]
[394706373,1763909446340,-150.0,0.00037534,2]
[394706374,1763909446350,-151.01043138,0.00037534,2]
[394706375,1763909446360,-150.0,0.00037534,2]
[394706376,1763909446370,-150.0,0.00037534,2]
[394706377,1763909446379,-150.0,0.00037534,2]
[394706378,1763909446389,-150.0,0.00037534,2]
[394706379,1763909446399,-156.91420768,0.00037534,2]
[394706380,1763909446409,-150.0,0.00037534,2]
[394706381,1763909446418,-500.0,0.00037534,2]
[394706382,1763909446428,-150.0,0.00037534,2]
[394706383,1763909446439,-500.0,0.00037534,2]
[394706384,1763909446449,-262.90979851,0.00037534,2]
[394706385,1763909446459,-500.0,0.00037534,2]
[394706386,1763909446469,-150.0,0.00037534,2]
[394706387,1763909446479,-150.0,0.00037534,2]
[394706388,1763909446489,-150.0,0.00037534,2]
[394706389,1763909446498,-500.0,0.00037534,2]
[394706390,1763909446508,-500.0,0.00037534,2]
[394706391,1763909446518,-500.0,0.00037534,2]
[394706392,1763909446527,-500.0,0.00037534,2]
[394706393,1763909446537,-500.0,0.00037534,2]
[394706394,1763909446547,-150.0,0.00037534,2]
[394706395,1763909446556,-500.0,0.00037534,2]
[394706396,1763909446565,-500.0,0.00037534,2]
[394706397,1763909446575,-500.0,0.00037534,2]
[394706398,1763909446584,-500.0,0.00037534,2]
[394706399,1763909446593,-408.13891343,0.00037534,2]
[394706400,1763909446604,-500.0,0.00037534,2]
[394706401,1763909446613,-369.55504582,0.0003757,2]
[394706402,1763909446623,-1500.0,0.00037667,120]
[394706403,1763909446634,-153.75790581,0.00037671,2]
[394706404,1763909446644,-150.0,0.00037671,2]
[394706405,1763909446653,-462.94382989,0.00037671,2]
[394706406,1763909446662,-150.0,0.00037671,2]
[394706407,1763909446672,-150.0,0.00037671,2]
[394706408,1763909446682,-200.89295245,0.00037671,2]
[394706409,1763909446692,-200.62726993,0.00037671,2]
[394706410,1763909446701,-150.0,0.00037671,2]
[394706411,1763909446711,-500.0,0.00037671,2]
[394706412,1763909446720,-150.0,0.00037671,2]
[394706413,1763909446729,-510.04729565,0.00037671,2]
[394706414,1763909446738,-500.0,0.00037671,2]
[394706415,1763909446748,-168.72452775,0.00037671,2]
[394706416,1763909446757,-150.0,0.00037671,2]
[394706417,1763909446767,-150.0,0.00037671,2]
[394706418,1763909446777,-500.0,0.00037671,2]
[394706419,1763909446787,-500.0,0.00037671,2]
[394706420,1763909446798,-500.0,0.00037671,2]
[394706421,1763909446811,-500.0,0.00037671,2]
[394706422,1763909446821,-500.0,0.00037671,2]
[394706423,1763909446831,-150.0,0.00037671,2]
[394706424,1763909446840,-500.0,0.00037671,2]
[394706425,1763909446851,-500.0,0.00037671,2]
[394706426,1763909446860,-504.54498225,0.00037671,2]
[394706427,1763909446870,-551.0458032,0.00037671,2]
[394706428,1763909446880,-500.0,0.00037671,2]
[394706429,1763909446890,-151.0,0.00037671,31]
[394706430,1763909446900,-156.608048,0.00037671,31]
[394706431,1763909446910,-157.865048,0.00037671,31]
[394706432,1763909446919,-156.450772,0.00037671,31]
[394706433,1763909446929,-154.160626,0.00037671,31]
[394706434,1763909446939,-1000.0,0.00037739,120]
[394706435,1763909446949,-1000.0,0.00037739,120]
[394706436,1763909446959,-1000.0,0.00037739,120]
[394706437,1763909446970,-1000.0,0.00037739,120]
[394706438,1763909447058,-1000.0,0.00037739,120]
[394706439,1763909447078,-1000.0,0.00037739,120]
[394706440,1763909447090,-966.643,0.00037739,120]
[394706441,1763909447099,-150.0,0.00037808,2]
[394706442,1763909447109,-200.0,0.00037808,2]
[394706443,1763909447119,-200.0,0.00037808,2]
[394706444,1763909447129,-500.0,0.00037808,2]
[394706445,1763909447138,-150.0,0.00037808,2]
[394706446,1763909447148,-500.0,0.00037808,2]
[394706447,1763909447158,-150.0,0.00037808,2]
[394706448,1763909447168,-150.0,0.00037808,2]
[394706449,1763909447177,-623.847373,0.00037808,2]
[394706450,1763909447188,-500.0,0.00037808,2]
[394706451,1763909447198,-500.0,0.00037808,2]
[394706452,1763909447208,-500.0,0.00037808,2]
[394706453,1763909447219,-500.0,0.00037808,2]
[394706454,1763909447228,-150.0,0.00037808,2]
[394706455,1763909447238,-500.0,0.00037808,2]
[394706456,1763909447248,-500.0,0.00037808,2]
[394706457,1763909447257,-500.0,0.00037808,2]
[394706458,1763909447267,-500.0,0.00037808,120]
[394706459,1763909447277,-2656.17,0.000379,2]
[394706460,1763909447286,-804.02752265,0.000379,2]
[394706461,1763909447296,-200.0,0.00037945,2]
[394706462,1763909447305,-500.0,0.00037945,2]
[394706463,1763909447315,-200.0,0.00037945,2]
[394706464,1763909447325,-500.0,0.00037945,2]
[394706465,1763909447334,-150.0,0.00037945,2]
[394706466,1763909447344,-500.0,0.00037945,2]
[394706467,1763909447354,-500.0,0.00037945,2]
[394706468,1763909447364,-500.0,0.00037945,2]
[394706469,1763909447374,-500.0,0.00037945,2]
[394706470,1763909447383,-150.0,0.00037945,2]
[394706471,1763909447393,-500.0,0.00037945,2]
[394706472,1763909447403,-500.0,0.00037945,2]
[394706473,1763909447412,-500.0,0.00037945,2]
[394706474,1763909447422,-1261.30601437,0.00037982,2]
[394706475,1763909447431,-2000.0,0.00038,2]
[394706476,1763909447440,-426.78462315,0.00038,120]
[394706477,1763909447450,-500.0,0.00038082,2]
[394706478,1763909447459,-150.0,0.00038082,2]
[394706479,1763909447469,-248.5438882,0.00038082,2]
[394706480,1763909447478,-500.0,0.00038082,2]
[394706481,1763909447487,-500.0,0.00038082,2]
[394706482,1763909447496,-500.0,0.00038082,2]
[394706483,1763909447505,-500.0,0.00038082,2]
[394706484,1763909447514,-250.0,0.00038082,2]
[394706485,1763909447523,-581.86579922,0.00038082,2]
[394706486,1763909447532,-500.0,0.00038082,2]
[394706487,1763909447542,-286.0,0.00038082,2]
[394706488,1763909447551,-1666.47246746,0.00038082,30]
[394706489,1763909447560,-500.0,0.00038082,120]
[394706490,1763909447569,-5984.47,0.000381,14]
[394706491,1763909447579,-957.74,0.00038137,2]
[394706492,1763909447590,-544.08987339,0.00038141,15]
[394706493,1763909447599,-1038.56,0.0003816,2]
[394706494,1763909447608,-400.0,0.00038219,2]
[394706495,1763909447618,-500.0,0.00038219,2]
[394706496,1763909447628,-500.0,0.00038219,2]
[394706497,1763909447638,-500.0,0.00038219,2]
[394706498,1763909447649,-500.0,0.00038219,2]
[394706499,1763909447660,-341.98072454,0.00038219,2]
[394706500,1763909447669,-216.37,0.000383,30]
[394706501,1763909447679,-1361.0,0.00038342,20]
[394706502,1763909447689,-1926.93962092,0.00038346,2]
[394706503,1763909447699,-151.0,0.00038353,14]
[394706504,1763909447709,-500.0,0.00038355,7]
[394706505,1763909447718,-500.0,0.00038355,7]
[394706506,1763909447727,-386.25799752,0.00038355,7]
[394706507,1763909447736,-671.94,0.00038355,2]
[394706508,1763909447746,-671.94,0.00038355,2]
[394706509,1763909447755,-671.94,0.00038355,2]
[394706510,1763909447765,-671.94,0.00038355,2]
[394706511,1763909447775,-500.0,0.00038355,2]
[394706512,1763909447785,-500.0,0.00038355,2]
[394706513,1763909447794,-500.0,0.00038355,2]
[394706514,1763909447806,-888.27,0.00038355,5]
[394706515,1763909447816,-500.0,0.00038356,2]
[394706516,1763909447826,-500.0,0.00038356,2]
[394706517,1763909447836,-500.0,0.00038356,2]
[394706518,1763909447846,-500.0,0.00038356,2]
[394706519,1763909447855,-500.0,0.00038356,8]
[394706520,1763909447865,-500.0,0.00038356,8]
[394706521,1763909447874,-500.0,0.00038356,8]
[394706522,1763909447886,-500.0,0.00038356,8]
[394706523,1763909447895,-500.0,0.00038356,8]
[394706524,1763909447904,-500.0,0.00038356,8]
[394706525,1763909447914,-500.0,0.00038356,8]
[394706526,1763909447923,-308.06780547,0.00038356,8]
[394706527,1763909447932,-500.83294889,0.00038356,8]
[394706528,1763909447942,-535.11103162,0.00038356,8]
[394706529,1763909447951,-500.08869546,0.00038356,8]
[394706530,1763909447961,-512.73497882,0.00038356,8]
[394706531,1763909447971,-500.0,0.00038356,8]
[394706532,1763909447980,-500.0,0.00038356,8]
[394706533,1763909447990,-500.0,0.00038356,8]
[394706534,1763909447999,-500.1896619,0.00038356,8]
[394706535,1763909448010,-500.0,0.00038356,8]
[394706536,1763909448020,-500.0,0.00038356,8]
[394706537,1763909448029,-500.0,0.00038356,8]
[394706538,1763909448039,-500.0,0.00038356,8]
[394706539,1763909448048,-500.0,0.00038356,8]
[394706540,1763909448057,-500.0,0.00038356,8]
[394706541,1763909448065,-500.0,0.00038356,8]
[394706542,1763909448075,-500.0,0.00038356,8]
[394706543,1763909448085,-500.0,0.00038356,8]
[394706544,1763909448095,-506.60953683,0.00038356,8]
[394706545,1763909448105,-500.0,0.00038356,8]
[394706546,1763909448114,-500.0,0.00038356,8]
[394706547,1763909448123,-500.0,0.00038356,8]
[394706548,1763909448133,-500.0,0.00038356,8]
[394706549,1763909448143,-500.0,0.00038356,8]
[394706550,1763909448152,-500.0,0.00038356,8]
[394706551,1763909448162,-500.0,0.00038356,8]
[394706552,1763909448175,-500.0,0.00038356,8]
[394706553,1763909448185,-505.4314058,0.00038356,8]
[394706554,1763909448194,-500.0,0.00038356,8]
[394706555,1763909448204,-500.0,0.00038356,8]
[394706556,1763909448214,-500.0,0.00038356,8]
[394706557,1763909448223,-500.0,0.00038356,8]
[394706558,1763909448232,-500.0,0.00038356,8]
[394706559,1763909448242,-502.11118916,0.00038356,8]
[394706560,1763909448251,-500.0,0.00038356,8]
[394706561,1763909448260,-500.0,0.00038356,8]
[394706562,1763909448270,-600.0,0.00038356,7]
[394706563,1763909448280,-504.76333007,0.00038356,8]
[394706564,1763909448289,-500.0,0.00038356,8]
[394706565,1763909448299,-500.0,0.00038356,8]
[394706566,1763909448308,-500.0,0.00038356,8]
[394706567,1763909448317,-500.0,0.00038356,8]
[394706568,1763909448326,-500.0,0.00038356,8]
[394706569,1763909448336,-500.0,0.00038356,8]
[394706570,1763909448345,-501.49154631,0.00038356,8]
[394706571,1763909448355,-500.0,0.00038356,8]
[394706572,1763909448365,-500.0,0.00038356,8]
[394706573,1763909448374,-500.0,0.00038356,8]
[394706574,1763909448383,-500.0,0.00038356,8]
[394706575,1763909448392,-500.0,0.00038356,8]
[394706576,1763909448401,-500.0,0.00038356,8]
[394706577,1763909448411,-500.0,0.00038356,8]
[394706578,1763909448420,-167.586562,0.00038356,8]
[394706579,1763909448429,-500.0,0.00038356,8]
[394706580,1763909448438,-500.0,0.00038356,8]
[394706581,1763909448448,-500.0,0.00038356,7]
[394706582,1763909448458,-212.715197,0.00038356,8]
[394706583,1763909448467,-500.0,0.00038356,8]
[394706584,1763909448476,-500.0,0.00038356,8]
[394706585,1763909448484,-160.962503,0.00038356,8]
[394706586,1763909448494,-500.0,0.00038356,8]
[394706587,1763909448503,-502.278426,0.00038356,8]
[394706588,1763909448512,-500.0,0.00038356,7]
[394706589,1763909448521,-500.0,0.00038356,8]
[394706590,1763909448530,-500.0,0.00038356,8]
[394706591,1763909448540,-500.0,0.00038356,8]
[394706592,1763909448549,-500.0,0.00038356,8]
[394706593,1763909448558,-500.0,0.00038356,2]
[394706594,1763909448567,-504.56578701,0.00038356,8]
[394706595,1763909448577,-500.0,0.00038356,8]
[394706596,1763909448586,-500.0,0.00038356,2]
[394706597,1763909448596,-710.39,0.00038356,8]
[394706598,1763909448606,-507.4379687,0.00038356,8]
[394706599,1763909448615,-500.0,0.00038356,8]
[394706600,1763909448625,-500.0,0.00038356,8]
[394706601,1763909448634,-780.49,0.00038356,8]
[394706602,1763909448644,-500.0,0.00038356,8]
[394706603,1763909448653,-500.0,0.00038356,8]
[394706604,1763909448664,-500.0,0.00038356,8]
[394706605,1763909448673,-500.0,0.00038356,8]
[394706606,1763909448683,-500.0,0.00038356,8]
[394706607,1763909448692,-503.85176969,0.00038356,8]
[394706608,1763909448701,-500.0,0.00038356,8]
[394706609,1763909448711,-500.0,0.00038356,8]
[394706610,1763909448720,-502.73061304,0.00038356,8]
[394706611,1763909448730,-500.0,0.00038356,8]
[394706612,1763909448740,-612.53,0.00038356,8]
[394706613,1763909448749,-500.0,0.00038356,8]
[394706614,1763909448758,-500.0,0.00038356,8]
[394706615,1763909448767,-500.0,0.00038356,8]
[394706616,1763909448777,-519.90066661,0.00038356,8]
[394706617,1763909448786,-564.91338538,0.00038356,8]
[394706618,1763909448795,-500.0,0.00038356,8]
[394706619,1763909448806,-500.0,0.00038356,8]
[394706620,1763909448815,-500.0,0.00038356,8]
[394706621,1763909448824,-500.0,0.00038356,8]
[394706622,1763909448834,-500.0,0.00038356,8]
[394706623,1763909448843,-500.0,0.00038356,8]
[394706624,1763909448853,-500.0,0.00038356,8]
[394706625,1763909448861,-500.0,0.00038356,8]
[394706626,1763909448871,-500.0,0.00038356,8]
[394706627,1763909448880,-500.0,0.00038356,8]
[394706628,1763909448889,-500.0,0.00038356,8]
[394706629,1763909448899,-539.29,0.00038356,8]
[394706630,1763909448909,-500.0,0.00038356,8]
[394706631,1763909448918,-500.0,0.00038356,8]
[394706632,1763909448928,-500.0,0.00038356,8]
[394706633,1763909448938,-506.34547075,0.00038356,8]
[394706634,1763909448948,-989.21,0.00038356,8]
[394706635,1763909448958,-1015.93,0.00038356,8]
[394706636,1763909448968,-500.0,0.00038356,8]
[394706637,1763909448986,-500.0,0.00038356,8]
[394706638,1763909448998,-500.0,0.00038356,8]
[394706639,1763909449009,-500.0,0.00038356,8]
[394706640,1763909449019,-513.59859581,0.00038356,8]
[394706641,1763909449031,-500.0,0.00038356,8]
[394706642,1763909449041,-500.0,0.00038356,8]
[394706643,1763909449051,-512.33308161,0.00038356,8]
[394706644,1763909449060,-500.0,0.00038356,8]
[394706645,1763909449070,-500.0,0.00038356,8]
[394706646,1763909449079,-500.0,0.00038356,8]
[394706647,1763909449088,-686.69,0.00038356,8]
[394706648,1763909449098,-500.0,0.00038356,8]
[394706649,1763909449109,-554.76803854,0.00038356,8]
[394706650,1763909449119,-753.03,0.00038356,8]
[394706651,1763909449129,-362.0170496,0.00038356,8]
[394706652,1763909449139,-500.0,0.00038356,8]
[394706653,1763909449149,-500.0,0.00038356,8]
[394706654,1763909449159,-500.0,0.00038356,8]
[394706655,1763909449168,-955.64,0.00038356,8]
[394706656,1763909449178,-749.68,0.00038356,8]
[394706657,1763909449187,-1904.91,0.00038356,8]
[394706658,1763909449197,-335.89372262,0.00038356,8]
[394706659,1763909449206,-500.0,0.00038356,8]
[394706660,1763909449216,-502.99,0.00038356,8]
[394706661,1763909449225,-500.0,0.00038356,8]
[394706662,1763909449235,-500.0,0.00038356,8]
[394706663,1763909449244,-500.0,0.00038356,8]
[394706664,1763909449254,-500.0,0.00038356,8]
[394706665,1763909449264,-500.0,0.00038356,8]
[394706666,1763909449275,-500.0,0.00038356,8]
[394706667,1763909449284,-151.0,0.00038356,31]
[394706668,1763909449294,-777.46,0.00038356,8]
[394706669,1763909449304,-151.0,0.00038356,31]
[394706670,1763909449313,-500.0,0.00038356,8]
[394706671,1763909449321,-500.0,0.00038356,8]
[394706672,1763909449331,-502.98338568,0.00038356,8]
[394706673,1763909449342,-500.0,0.00038356,8]
[394706674,1763909449355,-500.0,0.00038356,8]
[394706675,1763909449366,-500.0,0.00038356,8]
[394706676,1763909449378,-711.21,0.00038356,8]
[394706677,1763909449389,-500.0,0.00038356,8]
[394706678,1763909449399,-500.0,0.00038356,8]
[394706679,1763909449409,-500.0,0.00038356,8]
[394706680,1763909449419,-500.0,0.00038356,8]
[394706681,1763909449427,-545.57,0.00038356,8]
[394706682,1763909449435,-500.0,0.00038356,8]
[394706683,1763909449443,-500.0,0.00038356,8]
[394706684,1763909449450,-500.0,0.00038356,8]
[394706685,1763909449458,-500.0,0.00038356,8]
[394706686,1763909449468,-500.0,0.00038356,8]
[394706687,1763909449478,-500.0,0.00038356,8]
[394706688,1763909449488,-945.75,0.00038356,8]
[394706689,1763909449498,-500.0,0.00038356,8]
[394706690,1763909449507,-500.0,0.00038356,8]
[394706691,1763909449517,-151.585645,0.00038356,31]
[394706692,1763909449527,-602.02,0.00038356,8]
[394706693,1763909449538,-774.07,0.00038356,8]
[394706694,1763909449548,-500.0,0.00038356,8]